bitfinex/quotes_ETHUSD_20241013
["timestamp","ask_amount","ask_price","bid_price","bid_amount"]
[1728806883848,0.8106,2471.2,2470.9,5.54667632]
[1728806884007,0.84875103,2471.3,2471.0,6.87365395]
[1728806884213,1.65935103,2471.4,2471.0,6.87365395]
[1728806884517,1.65935103,2471.4,2471.0,0.7725]
[1728806884719,1.65935103,2471.4,2471.0,4.81943]
[1728806884916,1.65935103,2471.4,2471.1,0.12671664]
[1728806885146,1.65935103,2471.4,2471.0,0.7725]
[1728806885147,0.8106,2471.4,2471.0,0.7725]
[1728806885456,1.65935103,2471.4,2471.0,0.7725]
[1728806885644,1.65935103,2471.4,2471.1,0.12671665]
[1728806885849,1.65935103,2471.4,2471.0,4.81942]
[1728806886143,1.65935103,2471.4,2471.1,0.12671649]
[1728806886355,1.65935103,2471.4,2471.0,1.80910963]
[1728806886514,1.65935103,2471.4,2471.1,0.12671636]
[1728806886818,1.65935103,2471.4,2471.0,1.80910963]
[1728806887143,1.65935103,2471.4,2471.1,0.12671602]
[1728806887354,1.65935103,2471.4,2471.2,0.12671602]
[1728806887514,0.84875103,2471.4,2471.1,5.54624632]
[1728806887709,0.84875103,2471.4,2471.2,0.1267151]
[1728806887905,0.84875103,2471.4,2471.1,5.1869156]
[1728806888147,0.84875103,2471.4,2471.2,0.12671287]
[1728806888452,0.84875103,2471.4,2471.1,5.1869156]
[1728806888453,0.84875103,2471.4,2471.3,0.12671287]
[1728806890557,1.60365103,2471.4,2471.3,0.12671287]
[1728806890856,1.60365103,2471.4,2471.1,4.04667]
[1728806891012,1.60365103,2471.4,2471.2,0.12671472]
[1728806891355,1.60365103,2471.4,2471.3,0.12671472]
[1728806891722,1.60365103,2471.4,2470.9,4.0471]
[1728806891723,1.60365103,2471.4,2470.9,4.047]
[1728806891934,1.60365103,2471.4,2471.0,0.12671605]
[1728806892116,1.60365103,2471.4,2471.1,0.12671605]
[1728806892331,1.60365103,2471.4,2471.2,0.12671605]
[1728806892657,1.60365103,2471.4,2470.9,4.04699]
[1728806892658,1.60365103,2471.4,2471.0,1.12549442]
[1728806892967,1.60365103,2471.4,2471.1,0.12671606]
[1728806893135,1.60365103,2471.4,2471.2,0.12671606]
[1728806893335,1.60365103,2471.4,2470.9,8.094]
[1728806893512,1.60365103,2471.4,2471.0,4.17364592]
[1728806893713,1.60365103,2471.4,2471.1,0.12671592]
[1728806893921,1.60365103,2471.4,2471.2,0.12671592]
[1728806894150,1.60365103,2471.4,2471.0,4.04691]
[1728806894357,1.60365103,2471.4,2471.1,0.12671589]
[1728806894518,1.60365103,2471.4,2471.2,0.12671589]
[1728806894859,1.60365103,2471.4,2471.0,4.04691]
[1728806895156,1.60365103,2471.4,2471.1,0.12671594]
[1728806895363,1.60365103,2471.4,2471.2,0.12671594]
[1728806895519,0.84875103,2471.3,2471.0,4.04691]
[1728806895721,0.84875103,2471.3,2471.1,0.12671781]
[1728806895927,0.84875103,2471.3,2471.2,0.12671781]
[1728806898156,0.84875103,2471.3,2471.2,0.12671812]
[1728806900366,0.84875103,2471.3,2471.0,4.04692]
[1728806900667,0.84875103,2471.3,2471.1,0.1267182]
[1728806900833,0.84875103,2471.3,2471.2,0.1267182]
[1728806906674,0.84875103,2471.3,2471.0,5.17240642]
[1728806906865,0.84875103,2471.3,2471.1,0.12671623]
[1728806907065,0.84875103,2471.3,2471.2,0.12671623]
[1728806915891,0.84875103,2471.3,2471.0,0.7772]
[1728806916081,0.84875103,2471.3,2471.0,1.89904242]
[1728806916281,0.84875103,2471.3,2471.1,0.12671701]
[1728806916482,0.84875103,2471.3,2471.2,0.12671701]
[1728806916677,0.84875103,2471.3,2471.0,5.94592242]
[1728806916890,0.84875103,2471.3,2471.1,0.12671702]
[1728806917097,0.84875103,2471.3,2471.2,0.12671702]
[1728806919984,0.84875103,2471.3,2471.2,0.12671701]
[1728806923816,0.84875103,2471.3,2471.0,0.7772]
[1728806924019,0.84875103,2471.3,2471.2,0.12671881]
[1728806925509,2.03226013,2471.4,2471.2,0.12671881]
[1728806925826,2.03226013,2471.4,2471.3,0.12671881]
[1728806927401,2.03226013,2471.4,2471.0,4.82413]
[1728806927605,2.03226013,2471.4,2471.1,0.12671712]
[1728806927606,0.85091712,2471.3,2471.1,0.12671712]
[1728806927843,0.85091712,2471.3,2471.2,0.12671712]
[1728806928336,2.03226013,2471.4,2471.2,0.12671712]
[1728806928528,2.03226013,2471.4,2471.3,0.12671712]
[1728806929218,0.7549,2471.4,2471.3,0.12671712]
[1728806930144,2.45804684,2471.4,2471.3,0.12671712]
[1728806931044,2.45804684,2471.4,2471.3,0.12671672]
[1728806931257,2.45804684,2471.4,2471.3,0.12671674]
[1728806931774,0.7549,2471.4,2471.3,0.1267164]
[1728806932545,2.03185897,2471.4,2471.3,0.1267164]
[1728806932757,1.27695897,2471.4,2471.3,0.1267164]
[1728806933053,1.70314684,2471.5,2471.3,0.1267164]
[1728806933219,1.70314684,2471.5,2471.4,0.1267164]
[1728806935030,1.70314684,2471.5,2471.4,0.12671182]
[1728806938142,2.49734684,2471.6,2471.4,0.12671182]
[1728806938439,2.49734684,2471.6,2471.1,4.04666]
[1728806938610,0.85121028,2471.3,2471.2,0.4294999]
[1728806938814,0.85121028,2471.3,2471.2,1.48956131]
[1728806944478,0.85121028,2471.4,2471.2,1.48956131]
[1728806944632,0.85121028,2471.4,2471.3,0.4294999]
[1728806948362,0.85121028,2471.5,2471.3,0.4294999]
[1728806948702,0.85121028,2471.5,2471.2,4.82006141]
[1728806948703,0.85121028,2471.5,2471.4,0.12671038]
[1728806952002,0.85121028,2471.5,2471.4,0.1267039]
[1728806953066,0.85121028,2471.5,2471.4,1.47598406]
[1728806953260,0.85121028,2471.5,2471.4,1.77869601]
[1728806953498,0.85121028,2471.6,2471.4,1.77869601]
[1728806953660,0.85121028,2471.6,2471.5,0.1267039]
[1728806954595,0.85121028,2471.6,2471.5,1.62628022]
[1728806954798,0.85121028,2471.6,2471.5,7.87941826]
[1728806954962,0.85121028,2471.7,2471.6,4.04596]
[1728806955167,0.85121028,2471.7,2471.6,4.1726639]
[1728806955411,0.85121028,2471.8,2471.6,0.1267039]
[1728806955570,0.85121028,2471.8,2471.7,0.12668675]
[1728806956394,0.85121028,2471.8,2471.5,7.75265436]
[1728806956570,0.85121028,2471.8,2471.6,1.30657871]
[1728806956771,0.85121028,2471.8,2471.6,1.17989344]
[1728806958274,0.85121028,2471.9,2471.6,1.17989344]
[1728806959597,0.85121028,2471.9,2471.6,2.67946976]
[1728806960106,0.85121028,2471.9,2471.6,1.17989344]
[1728806960299,0.85121028,2471.9,2471.7,0.75257598]
[1728806961166,0.85121028,2471.9,2471.6,1.49957632]
[1728806961367,0.85121028,2471.9,2471.5,2.29977632]
[1728806962203,0.85121028,2471.9,2471.6,1.49957632]
[1728806964311,0.85121028,2471.9,2471.6,5.54549632]
[1728806964515,0.85121028,2471.9,2471.7,1.49957632]
[1728806964812,0.85121028,2471.9,2471.7,2.13414595]
[1728806965392,0.85121028,2471.9,2471.7,0.63456963]
[1728806969139,1.89021028,2472.0,2471.6,1.49957632]
[1728806969742,0.85121028,2471.9,2471.6,1.49957632]
[1728806969955,0.85121028,2471.9,2471.5,0.8002]
[1728806969956,0.85121028,2471.9,2471.5,2.29977632]
[1728806970180,0.85121028,2471.9,2471.6,1.49957632]
[1728806970634,0.85121028,2471.9,2471.5,2.29977632]
[1728806970976,0.85121028,2471.9,2471.6,2.53878595]
[1728806971472,0.85121028,2471.9,2471.7,1.49957632]
[1728806973659,0.85121028,2471.9,2471.6,2.53878595]
[1728806978185,0.85121028,2471.8,2471.6,2.53878595]
[1728806978750,0.85121028,2471.9,2471.6,2.53878595]
[1728806979163,0.85121028,2471.8,2471.6,1.03920963]
[1728806979362,0.85121028,2471.8,2471.6,2.53878595]
[1728806983563,0.85121028,2471.8,2471.6,1.03920963]
[1728806988164,0.85121028,2471.7,2471.3,5.26307632]
[1728806988497,4.89703028,2471.7,2471.4,0.12669323]
[1728806988698,0.85121028,2471.7,2471.4,4.49957632]
[1728806988901,0.85121028,2471.6,2471.4,1.49957632]
[1728806989495,0.85121028,2471.6,2471.5,2.26307632]
[1728806989677,0.85121028,2471.7,2471.5,2.38976841]
[1728806989888,0.85121028,2471.7,2471.5,2.26307632]
[1728806990786,0.85121028,2471.7,2471.5,6.30918632]
[1728806990991,0.85121028,2471.8,2471.6,0.12668858]
[1728806991296,0.85121028,2471.8,2471.5,6.30918632]
[1728806991501,0.85121028,2471.8,2471.6,1.2553211]
[1728806991713,0.85121028,2471.8,2471.6,1.1286316]
[1728806992304,0.85121028,2471.8,2471.7,0.12668792]
[1728806993605,0.85121028,2471.8,2471.7,1.62626424]
[1728806994520,0.85121028,2471.8,2471.7,0.12668792]
[1728806995277,0.85121028,2471.9,2471.7,2.38269582]
[1728806995577,0.85121028,2471.9,2471.8,0.12668792]
[1728806997917,0.85121028,2471.9,2471.8,2.38976424]
[1728806998290,0.85121028,2471.9,2471.8,0.89018792]
[1728806999006,0.85121028,2471.9,2471.8,2.38976424]
[1728806999211,0.85121028,2471.9,2471.8,3.51354882]
[1728806999576,0.85121028,2471.9,2471.8,2.0139725]
[1728807000705,0.85121028,2471.9,2471.8,1.2504725]
[1728807003022,0.85121028,2471.9,2471.8,0.12668792]
[1728807003382,0.85121028,2471.9,2471.8,0.1266808]
[1728807004226,1.13621028,2472.0,2471.8,0.1266808]
[1728807004527,1.13621028,2472.0,2471.4,4.61117784]
[1728807004528,1.63441028,2471.9,2471.4,4.61117784]
[1728807004685,1.63441028,2471.9,2471.5,0.12668633]
[1728807004883,0.85121028,2471.8,2471.6,0.12668633]
[1728807005089,0.85121028,2471.8,2471.7,0.12668633]
[1728807005302,8.62862849,2471.8,2471.7,0.12668633]
[1728807005595,4.82905,2471.7,2471.2,4.49957632]
[1728807005809,4.82905,2471.7,2471.3,0.12669984]
[1728807005810,0.85047943,2471.6,2471.3,0.12669984]
[1728807006009,0.85047943,2471.6,2471.4,0.12669999]
[1728807006232,5.67952943,2471.7,2471.5,0.12669999]
[1728807006427,5.67952943,2471.7,2471.6,0.12669999]
[1728807006927,1.63367943,2471.7,2471.6,0.12669999]
[1728807009934,1.63367943,2471.7,2471.3,3.0]
[1728807010136,1.63367943,2471.7,2471.4,0.12669944]
[1728807010433,1.63367943,2471.7,2471.5,0.12669944]
[1728807010732,1.63367943,2471.7,2471.3,3.0]
[1728807010733,1.63367943,2471.7,2471.6,0.12669944]
[1728807011026,1.63367943,2471.7,2471.3,3.0]
[1728807011541,1.63367943,2471.7,2471.4,0.12670103]
[1728807011735,1.63367943,2471.7,2471.5,0.12670103]
[1728807011945,0.85047943,2471.6,2471.3,3.0]
[1728807012111,0.85047943,2471.6,2471.4,0.12670289]
[1728807012437,5.67950943,2471.7,2471.5,0.12670289]
[1728807012735,0.8038,2471.5,2471.1,3.84767784]
[1728807012919,2.30337632,2471.5,2471.2,0.12671078]
[1728807013241,2.30337632,2471.5,2471.1,3.84767784]
[1728807013242,1.65427943,2471.5,2471.3,0.12671078]
[1728807013435,1.65427943,2471.5,2471.4,0.12671078]
[1728807014393,1.65427943,2471.5,2471.1,4.49957632]
[1728807014597,1.65427943,2471.5,2471.2,0.12671061]
[1728807014833,1.65427943,2471.5,2471.3,0.12671061]
[1728807015040,1.65427943,2471.5,2471.1,3.0]
[1728807015041,1.65427943,2471.5,2471.4,0.12671061]
[1728807015538,0.8038,2471.5,2471.4,0.12671061]
[1728807017335,0.8038,2471.5,2471.3,3.0]
[1728807017645,0.8038,2471.5,2471.4,0.12670834]
[1728807018196,0.8038,2471.5,2471.4,0.12670829]
[1728807018514,0.8038,2471.5,2471.2,1.49957632]
[1728807018696,0.8038,2471.5,2471.3,0.87910762]
[1728807018899,0.8038,2471.5,2471.4,0.12670957]
[1728807020500,2.30337632,2471.5,2471.1,3.0]
[1728807020841,2.30337632,2471.5,2471.2,0.12670818]
[1728807020842,1.65427943,2471.5,2471.2,0.12670818]
[1728807020994,0.8038,2471.5,2471.3,0.12670818]
[1728807021324,1.65427943,2471.5,2471.2,0.3024619]
[1728807021528,0.8038,2471.5,2471.3,3.12671225]
[1728807021842,0.8038,2471.5,2471.3,3.0]
[1728807022394,0.8038,2471.5,2471.1,4.49957632]
[1728807022739,0.8038,2471.5,2471.2,1.76481739]
[1728807022915,0.8038,2471.5,2471.3,0.12670854]
[1728807023115,0.8038,2471.5,2471.2,0.30243822]
[1728807023324,0.8038,2471.5,2471.3,0.12671081]
[1728807023527,0.8038,2471.5,2471.2,0.30243822]
[1728807023838,0.8038,2471.5,2471.3,0.12670855]
[1728807024043,0.8038,2471.5,2471.2,0.30243822]
[1728807024225,0.8038,2471.5,2471.3,0.12670875]
[1728807024547,0.85047943,2471.6,2471.3,3.0]
[1728807025205,0.85047943,2471.6,2471.2,1.36590945]
[1728807025499,0.85047943,2471.6,2471.3,0.12670867]
[1728807025704,0.85047943,2471.6,2471.1,7.04674]
[1728807025903,0.85047943,2471.6,2471.2,0.42910601]
[1728807026109,0.85047943,2471.6,2471.3,0.12670727]
[1728807026337,0.85047943,2471.6,2471.2,0.30239874]
[1728807026541,0.85047943,2471.6,2471.3,0.12670664]
[1728807026854,0.85047943,2471.6,2471.2,0.30239874]
[1728807027029,0.85047943,2471.6,2471.3,0.12670861]
[1728807027233,0.85047943,2471.6,2471.2,0.30239874]
[1728807027405,0.85047943,2471.6,2471.3,0.12670889]
[1728807027747,2.35005575,2471.6,2471.2,0.30238839]
[1728807027909,0.85047943,2471.6,2471.3,0.12670867]
[1728807028105,0.85047943,2471.6,2471.2,0.30238839]
[1728807028420,0.85047943,2471.6,2471.3,0.12670875]
[1728807028620,0.85047943,2471.6,2471.1,7.04675]
[1728807028939,0.85047943,2471.6,2471.2,1.46237159]
[1728807029144,0.85047943,2471.6,2471.3,0.12670896]
[1728807029307,0.85047943,2471.6,2471.1,7.04675]
[1728807029511,0.85047943,2471.6,2471.2,0.12671055]
[1728807029712,0.85047943,2471.6,2471.3,0.12671055]
[1728807029927,0.85047943,2471.6,2471.1,7.04675]
[1728807030132,0.85047943,2471.6,2471.2,0.12670897]
[1728807030334,0.85047943,2471.6,2471.3,0.12670897]
[1728807030612,2.35005575,2471.6,2471.1,8.46718042]
[1728807030814,2.35005575,2471.6,2471.2,0.12671109]
[1728807031116,2.35005575,2471.6,2471.3,0.12671109]
[1728807031319,2.35005575,2471.6,2471.1,8.76954397]
[1728807031655,2.35005575,2471.6,2471.2,1.63465217]
[1728807031835,2.35005575,2471.6,2471.3,0.12671014]
[1728807032145,0.09230381,2471.5,2471.1,7.34911355]
[1728807032351,0.84720381,2471.5,2471.2,0.1267101]
[1728807032552,0.7549,2471.5,2471.1,7.34911355]
[1728807032748,0.09247148,2471.4,2471.2,1.49260909]
[1728807032934,0.09247148,2471.4,2471.3,0.1267101]
[1728807033331,0.09247148,2471.4,2471.2,1.36589899]
[1728807036865,0.09247148,2471.4,2471.3,0.12670853]
[1728807037172,0.09247148,2471.4,2471.1,7.34911355]
[1728807037342,0.09247148,2471.4,2471.2,0.12671135]
[1728807037531,0.09247148,2471.4,2471.1,8.71501254]
[1728807037731,0.09247148,2471.4,2471.2,0.12671136]
[1728807038065,0.09247148,2471.4,2471.1,8.71501254]
[1728807038567,0.09247148,2471.4,2471.1,10.21458886]
[1728807038742,0.09247148,2471.4,2471.2,1.50248889]
[1728807038941,0.09247148,2471.4,2471.2,1.62919832]
[1728807039672,0.09247148,2471.4,2471.3,0.12670907]
[1728807039829,0.09247148,2471.4,2471.1,7.34906787]
[1728807040029,0.09247148,2471.4,2471.2,0.12670926]
[1728807040254,0.09247148,2471.4,2471.1,7.34906787]
[1728807040455,0.09247148,2471.4,2471.2,1.49260369]
[1728807040660,0.09247148,2471.4,2471.3,0.12670927]
[1728807041103,0.09247148,2471.4,2471.1,7.34906787]
[1728807041309,0.09247148,2471.4,2471.2,0.1267092]
[1728807041501,0.09247148,2471.4,2471.1,3.30232796]
[1728807041704,0.09247148,2471.4,2471.2,0.12671069]
[1728807042007,0.09247148,2471.4,2471.3,0.12671069]
[1728807042204,0.09247148,2471.4,2471.1,8.39508617]
[1728807042393,0.09247148,2471.4,2471.2,0.12671019]
[1728807042733,0.09247148,2471.4,2471.3,0.12671019]
[1728807044940,0.09247148,2471.4,2471.3,0.12670815]
[1728807049441,0.09247148,2471.4,2471.3,0.42932691]
[1728807052441,0.09247148,2471.4,2471.3,0.42932631]
[1728807053556,0.94295091,2471.4,2471.3,0.42932631]
[1728807056057,0.94295091,2471.4,2471.3,0.4295038]
[1728807062173,0.94295091,2471.4,2471.3,0.30279625]
[1728807062367,0.94295091,2471.4,2471.3,0.42953279]
[1728807065745,0.94295091,2471.4,2471.3,0.30282479]
[1728807065985,0.94295091,2471.4,2471.3,0.4295328]
[1728807069460,0.94295091,2471.4,2471.3,0.30282479]
[1728807069772,0.94295091,2471.4,2471.3,0.42968234]
[1728807073063,1.36928691,2471.4,2471.3,0.30297471]
[1728807073272,1.36928691,2471.4,2471.3,0.12671506]
[1728807073614,1.36928691,2471.4,2471.3,0.30303405]
[1728807073813,1.36928691,2471.4,2471.3,0.42971651]
[1728807075281,0.09247148,2471.4,2471.3,0.42971651]
[1728807075605,1.36928691,2471.4,2471.3,0.42971651]
[1728807075812,0.09247148,2471.4,2471.3,0.42971651]
[1728807080711,0.09247148,2471.4,2471.0,8.65811784]
[1728807081012,0.8511767,2471.3,2471.1,4.572567]
[1728807081207,0.8511767,2471.3,2471.2,0.42964591]
[1728807084628,0.8511767,2471.3,2471.2,0.30291679]
[1728807084842,0.8511767,2471.4,2471.2,0.42962841]
[1728807085043,0.8511767,2471.4,2471.3,0.42962841]
[1728807087510,0.94361791,2471.4,2471.3,0.42962841]
[1728807088433,0.94361791,2471.4,2471.3,0.30291679]
[1728807088639,0.94361791,2471.4,2471.3,0.42961398]
[1728807088797,0.94361791,2471.4,2471.3,0.73251723]
[1728807090143,0.94361791,2471.4,2471.3,0.42961398]
[1728807091201,0.94361791,2471.4,2471.3,4.47606398]
[1728807096604,0.94361791,2471.4,2471.3,4.47607488]
[1728807097010,0.94361791,2471.4,2471.3,4.04645]
[1728807097223,0.94361791,2471.4,2471.3,4.47606807]
[1728807099925,0.94361791,2471.4,2471.3,4.04645]
[1728807100566,0.94361791,2471.4,2471.3,4.47607218]
[1728807101932,0.94361791,2471.4,2471.3,4.77899502]
[1728807102493,0.94361791,2471.4,2471.3,4.77899488]
[1728807102771,0.94361791,2471.4,2471.3,4.7790646]
[1728807106773,0.94361791,2471.4,2471.3,4.3493648]
[1728807106945,0.94361791,2471.4,2471.3,4.90577416]
[1728807107149,0.94361791,2471.4,2471.3,5.20876949]
[1728807111065,0.94361791,2471.4,2471.3,5.08206015]
[1728807111390,0.94361791,2471.4,2471.3,5.51176192]
[1728807111846,0.94361791,2471.4,2471.3,4.60285905]
[1728807112050,0.94361791,2471.4,2471.3,4.47615177]
[1728807114989,0.94361791,2471.4,2471.3,4.04645]
[1728807115148,0.94361791,2471.4,2471.3,4.60284263]
[1728807115344,0.94361791,2471.4,2471.3,4.9058199]
[1728807115590,0.94361791,2471.4,2471.3,5.20879709]
[1728807118586,0.09244121,2471.4,2471.3,6.51910458]
[1728807118995,0.09244121,2471.4,2471.3,6.51911744]
[1728807119154,1.36925664,2471.4,2471.3,6.51911744]
[1728807119500,1.36925664,2471.4,2471.3,5.20880995]
[1728807121101,0.09244121,2471.4,2471.3,5.20880995]
[1728807121484,0.09244121,2471.4,2471.3,1.16235995]
[1728807121688,0.09244121,2471.4,2471.3,0.85936852]
[1728807121896,0.09244121,2471.4,2471.3,1.16236188]
[1728807122198,0.09244121,2471.4,2471.3,0.30299336]
[1728807123104,1.36925664,2471.4,2471.3,4.34944336]
[1728807124782,1.36925664,2471.4,2471.3,5.4890397]
[1728807124983,0.09244121,2471.4,2471.3,5.4890397]
[1728807128512,0.09244121,2471.4,2471.3,4.34944336]
[1728807128671,1.36925664,2471.4,2471.3,0.30299336]
[1728807129379,1.36925664,2471.4,2471.2,4.04652]
[1728807129701,0.85118028,2471.3,2471.2,4.04652]
[1728807130094,0.93935737,2471.3,2471.2,4.04652]
[1728807130964,2.43893369,2471.3,2471.1,3.0]
[1728807131412,0.85118028,2471.2,2471.1,3.0]
[1728807131708,2.4358066,2471.2,2471.1,3.0]
[1728807131919,0.7992,2471.1,2470.7,0.84767784]
[1728807132213,0.7992,2470.8,2470.6,4.04754]
[1728807132407,0.08471334,2470.7,2470.4,6.05593976]
[1728807132594,2.29877632,2470.8,2470.5,4.04773]
[1728807132912,0.08471334,2470.7,2470.5,4.04773]
[1728807133080,0.08471334,2470.7,2470.5,3.0]
[1728807133291,3.14999468,2470.8,2470.5,3.0]
[1728807133516,0.08464599,2470.6,2470.5,3.0]
[1728807133742,2.29877632,2470.8,2470.5,7.04776]
[1728807133875,0.08464599,2470.6,2470.5,7.04776]
[1728807134075,2.29877632,2470.8,2470.5,7.04776]
[1728807134378,0.7992,2470.8,2470.5,7.04776]
[1728807134709,0.08471334,2470.7,2470.5,7.04776]
[1728807134913,0.08471334,2470.7,2470.5,7.58903694]
[1728807135126,0.7992,2470.8,2470.5,7.58903694]
[1728807135329,0.08464599,2470.6,2470.5,7.58903694]
[1728807135526,2.29877632,2470.8,2470.5,3.54127694]
[1728807135731,0.08464599,2470.6,2470.5,3.0]
[1728807135923,0.7992,2470.8,2470.5,3.0]
[1728807136117,0.08330266,2470.6,2470.5,3.0]
[1728807136315,2.29877632,2470.8,2470.5,3.0]
[1728807136844,0.08337001,2470.7,2470.5,3.0]
[1728807137412,0.7992,2470.8,2470.5,3.0]
[1728807137617,0.08326191,2470.7,2470.5,3.97078082]
[1728807137812,0.7992,2470.8,2470.5,3.97078082]
[1728807138019,0.08326191,2470.7,2470.5,3.97078082]
[1728807138224,0.7992,2470.8,2470.5,3.97078082]
[1728807138541,0.08326191,2470.7,2470.5,4.49957632]
[1728807138752,0.08326191,2470.7,2470.6,4.04759]
[1728807138907,3.14999468,2471.0,2470.6,4.04759]
[1728807139107,0.08326497,2470.7,2470.5,3.0]
[1728807139307,3.14999468,2471.0,2470.5,3.0]
[1728807139539,0.08319762,2470.6,2470.5,3.0]
[1728807139699,3.14999468,2471.0,2470.5,4.37555782]
[1728807139904,0.08319762,2470.6,2470.5,3.0]
[1728807140335,3.14999468,2471.0,2470.5,7.04774]
[1728807140547,0.08319762,2470.6,2470.5,7.04774]
[1728807140747,1.49957632,2470.9,2470.5,7.04774]
[1728807140941,0.08319762,2470.6,2470.5,7.04774]
[1728807141126,1.49957632,2470.9,2470.5,4.37555482]
[1728807141348,0.08319762,2470.6,2470.5,3.0]
[1728807141639,0.08260096,2470.6,2470.5,3.0]
[1728807141844,3.14999468,2471.0,2470.5,7.04776]
[1728807142056,0.08280299,2470.9,2470.5,7.04776]
[1728807143049,0.08280299,2470.9,2470.5,8.54733632]
[1728807143253,0.08280299,2470.9,2470.5,9.90571734]
[1728807144043,1.58237931,2470.9,2470.5,4.35838102]
[1728807144258,1.58237931,2470.9,2470.5,3.0]
[1728807153414,0.08280299,2470.9,2470.5,3.0]
[1728807153611,1.58237931,2470.9,2470.5,3.0]
[1728807164626,0.08280299,2470.9,2470.5,3.0]
[1728807164861,1.58237931,2470.9,2470.5,3.0]
[1728807167080,2.43359767,2470.9,2470.5,3.0]
[1728807172510,0.85121836,2470.8,2470.5,3.0]
[1728807172867,0.07520491,2470.7,2470.5,3.0]
[1728807173067,0.85121836,2470.8,2470.5,3.0]
[1728807173267,0.07520491,2470.7,2470.5,3.0]
[1728807173467,0.85121836,2470.8,2470.5,3.0]
[1728807173668,0.07520491,2470.7,2470.5,3.0]
[1728807173889,0.85121836,2470.8,2470.5,3.0]
[1728807174571,0.07520491,2470.7,2470.5,3.0]
[1728807174904,2.35079468,2470.8,2470.4,3.7618]
[1728807175115,0.07516401,2470.6,2470.4,3.7618]
[1728807175290,2.35079468,2470.8,2470.4,3.7618]
[1728807175471,0.92647618,2470.7,2470.4,3.7618]
[1728807176316,1.49957632,2470.6,2470.4,0.7618]
[1728807176569,1.49957632,2470.6,2470.3,3.0]
[1728807176570,0.0751465,2470.5,2470.3,3.0]
[1728807176771,2.35079468,2470.6,2470.3,3.0]
[1728807176975,0.0751465,2470.5,2470.3,3.0]
[1728807177200,0.0751465,2470.5,2470.0,4.89615784]
[1728807177201,1.49957632,2470.4,2470.0,4.89615784]
[1728807177507,0.07501177,2470.3,2470.0,5.72535784]
[1728807177710,0.07501177,2470.3,2470.0,6.27255168]
[1728807178081,0.07501177,2470.3,2470.0,6.6801958]
[1728807178386,0.07501177,2470.3,2470.1,3.0]
[1728807179495,1.57458809,2470.3,2470.0,0.8292]
[1728807179695,2.42580645,2470.3,2470.0,0.8292]
[1728807180097,0.85121836,2470.2,2470.0,0.8292]
[1728807180444,0.07492677,2470.1,2470.0,0.8292]
[1728807181809,2.35079468,2470.3,2470.0,0.8292]
[1728807182017,0.07499415,2470.2,2470.0,0.8292]
[1728807182218,0.07499415,2470.2,2470.1,0.12676905]
[1728807182672,0.85121836,2470.3,2470.1,3.12676905]
[1728807182875,0.07499415,2470.2,2470.1,3.0]
[1728807183075,0.85121836,2470.3,2470.1,3.12676759]
[1728807183316,0.07499415,2470.2,2470.1,3.0]
[1728807183482,0.07499415,2470.2,2470.1,3.12676692]
[1728807184114,2.35079468,2470.3,2470.1,3.12676692]
[1728807184289,0.07499415,2470.2,2470.1,3.0]
[1728807184496,0.07499415,2470.2,2470.1,3.12676783]
[1728807184684,2.35079468,2470.3,2470.1,3.12676783]
[1728807184876,0.07499415,2470.2,2470.1,3.0]
[1728807185079,2.35079468,2470.3,2470.1,3.12676771]
[1728807185419,0.07499415,2470.2,2470.1,3.0]
[1728807185619,1.49957632,2470.3,2470.1,3.0]
[1728807185802,0.07499415,2470.2,2470.1,3.0]
[1728807185992,1.49957632,2470.3,2470.1,3.12676769]
[1728807186172,0.07499415,2470.2,2470.1,3.0]
[1728807186385,1.49957632,2470.3,2470.1,3.0]
[1728807186579,0.07499415,2470.2,2470.1,3.0]
[1728807186813,1.49957632,2470.3,2470.1,3.0]
[1728807187013,0.07499415,2470.2,2470.1,3.0]
[1728807187214,1.49957632,2470.3,2470.1,3.0]
[1728807187420,0.07499415,2470.2,2470.1,3.0]
[1728807187718,0.85121836,2470.4,2470.1,3.0]
[1728807187880,0.07499415,2470.2,2470.1,7.04841]
[1728807188087,0.85121836,2470.4,2470.2,0.8245]
[1728807188309,2.35079468,2470.4,2470.2,0.8245]
[1728807188622,0.85121836,2470.4,2470.2,0.8245]
[1728807189584,0.85121836,2470.4,2470.1,3.0]
[1728807189585,2.35079468,2470.4,2470.1,3.0]
[1728807189786,1.49957632,2470.3,2470.1,3.0]
[1728807192415,0.07489209,2470.2,2470.1,3.0]
[1728807192719,1.49957632,2470.3,2470.1,3.0]
[1728807192931,0.07489209,2470.2,2470.1,3.0]
[1728807193219,1.49957632,2470.3,2470.1,3.0]
[1728807193419,0.85121836,2470.4,2470.1,3.0]
[1728807193420,0.07489209,2470.2,2470.1,3.0]
[1728807193590,2.35079468,2470.4,2470.1,3.0]
[1728807193790,0.07495945,2470.3,2470.1,3.0]
[1728807194107,0.07495945,2470.3,2470.1,7.0484]
[1728807194304,0.07495945,2470.3,2470.1,7.86872372]
[1728807194622,0.07495945,2470.3,2470.1,3.82032372]
[1728807196631,0.07495945,2470.3,2470.1,7.86872372]
[1728807197321,0.07495945,2470.3,2470.1,3.82032372]
[1728807197693,1.57453577,2470.3,2470.1,3.82032372]
[1728807198633,0.07495945,2470.3,2470.1,7.86873372]
[1728807198799,0.07495945,2470.3,2470.1,3.82032372]
[1728807201631,1.57453577,2470.3,2470.1,3.82032372]
[1728807201790,1.57453577,2470.3,2470.1,7.86869372]
[1728807201994,0.07495945,2470.3,2470.1,7.86869372]
[1728807203562,1.57453577,2470.3,2470.1,3.0]
[1728807205217,1.57453577,2470.3,2470.1,7.04841]
[1728807205748,0.07495945,2470.3,2470.1,3.0]
[1728807206977,0.07495945,2470.3,2470.1,7.0484]
[1728807208273,0.07495945,2470.3,2470.1,3.0]
[1728807208657,0.07495945,2470.3,2470.1,7.04841]
[1728807208854,1.57453577,2470.3,2470.1,7.04841]
[1728807209090,0.07495945,2470.3,2470.1,7.04841]
[1728807209293,0.07495945,2470.3,2470.1,3.0]
[1728807210419,0.07495945,2470.3,2470.1,7.04836]
[1728807213658,0.07495945,2470.3,2470.1,3.0]
[1728807216490,0.92617781,2470.3,2470.1,3.0]
[1728807216843,0.92617781,2470.3,2470.1,7.04838]
[1728807220611,0.92617781,2470.3,2470.1,3.0]
[1728807220821,0.92617781,2470.3,2470.1,7.0484]
[1728807221151,0.85121836,2470.2,2470.1,7.0484]
[1728807221310,0.85121836,2470.2,2470.1,7.35168502]
[1728807221513,0.92610129,2470.2,2470.1,7.35168502]
[1728807222044,0.92610129,2470.2,2470.1,3.30328502]
[1728807222709,0.92610129,2470.2,2470.1,7.35169502]
[1728807223302,0.92610129,2470.2,2470.1,3.30328502]
[1728807225435,0.07488293,2470.2,2470.1,3.30328502]
[1728807225657,1.27682754,2470.3,2470.1,3.30328502]
[1728807225851,1.27682754,2470.3,2470.2,0.30328502]